[Event "VII Cape Verde Championship 2023"]
[Site "Ponta do Sol"]
[Date "2023.12.06"]
[Round "5.4"]
[White "Silva, Bryan Jorge"]
[Black "Vaz, Jose Carlos"]
[Result "0-1"]
[ECO "B33"]
[WhiteElo "1586"]
[BlackElo "1833"]
[Annotator "NA RC"]
[PlyCount "116"]
[EventDate "2023.11.30"]
[EventType "tourn"]
[EventCountry "KAP"]
[SourceTitle "playchess.com"]
[Source "ChessBase"]
[SourceQuality "1"]
[TimeControl "40/5400+30:1800+30"]

1. e4 {[%emt 0:00:02]} c5 {[%emt 0:00:37]} 2. Nf3 {[%emt 0:00:13]} Nc6 {[%emt 0:00:22]} 3. d4 {[%emt 0:00:23]} cxd4 {[%emt 0:00:13]} 4. Nxd4 {[%emt 0:00:08]} Nf6 {[%emt 0:00:30]} 5. Nc3 {[%emt 0:00:14]} e5 {[%emt 0:00:25]} 6. Nb3 {[%emt 0:00:21]} Bb4 {[%emt 0:00:25]} 7. Bd3 {[%emt 0:00:57]} d5 {[%emt 0:01:06]} 8. exd5 {[%emt 0:04:28]} Nxd5 {[%emt 0:00:21]} 9. Bd2 {[%emt 0:00:08]} Nxc3 {[%emt 0:00:35]} 10. bxc3 {[%emt 0:01:43]} Be7 {[%emt 0:00:55]} 11. O-O {[%emt 0:00:20]} O-O {[%emt 0:00:06]} 12. Re1 {[%emt 0:01:36]} f5 {[%emt 0:00:27]} 13. f3 {[%emt 0:02:02]} a5 {[%emt 0:00:40]} 14. a4 {[%emt 0:00:19]} Kh8 {[%emt 0:00:31]} 15. Qe2 {[%emt 0:00:38]} Qc7 {[%emt 0:01:39]} 16. Kh1 {[%emt 0:00:51]} Bd6 {[%emt 0:00:20]} 17. h3 {[%emt 0:01:01]} Bd7 {[%emt 0:00:49]} 18. Qd1 {[%emt 0:09:05]} Rae8 {[%emt 0:00:44]} 19. Bb5 {[%emt 0:02:24]} Re6 {[%emt 0:04:22]} 20. Be3 {[%emt 0:07:26]} Rg6 {[%emt 0:04:44]} 21. Qd2 {[%emt 0:06:27]} f4 {[%emt 0:02:27]} 22. Bc5 {[%emt 0:00:31]} Rff6 {[%emt 0:04:09]} 23. Rad1 {[%emt 0:01:30]} Rh6 {[%emt 0:03:27]} 24. Kh2 {[%emt 0:01:18]} b6 {[%emt 0:01:09]} 25. Bxd6 {[%emt 0:00:34]} Rxd6 {[%emt 0:00:27]} 26. Qe2 {[%emt 0:00:11]} Rdg6 {[%emt 0:08:47]} 27. Bxc6 {[%emt 0:02:34]} Qxc6 {[%emt 0:02:32]} 28. Qxe5 {[%emt 0:00:23]} Rxg2+ {[%emt 0:08:52]} 29. Kxg2 {[%emt 0:00:23]} Qg6+ {[%emt 0:00:25]} 30. Kf2 {[%emt 0:03:47]} Qg3+ {[%emt 0:00:27]} 31. Ke2 {[%emt 0:00:31]} Re6 {[%emt 0:16:34]} 32. Qxe6 {[%emt 0:00:14]} Bxe6 {[%emt 0:00:40]} 33. Rd8+ {[%emt 0:00:06]} Bg8 {[%emt 0:00:17]} 34. Rf1 {[%emt 0:02:33]} h6 {[%emt 0:00:38]} 35. Nd4 {[%emt 0:00:37]} Kh7 {[%emt 0:00:51]} 36. Rd6 {[%emt 0:02:05]} Bc4+ {[%emt 0:01:46]} 37. Kd2 {[%emt 0:00:44]} Bxf1 {[%emt 0:00:16]} 38. Rxb6 {[%emt 0:00:10]} Qxh3 {[%emt 0:01:01]} 39. Rd6 {[%emt 0:01:01]} Qc8 {[%emt 0:00:41]} 40. Rd5 {[%emt 0:00:39]} Qe8 {[%emt 0:00:35]} 41. Kc1 {[%emt 0:31:18]} Qxa4 {[%emt 0:30:50]} 42. Rf5 {[%emt 0:01:13]} Qa3+ {[%emt 0:00:23]} 43. Kd2 {[%emt 0:00:10]} g5 {[%emt 0:01:04]} 44. Rf7+ {[%emt 0:00:44]} Kg6 {[%emt 0:00:11]} 45. Rb7 {[%emt 0:00:07]} Bh3 {[%emt 0:00:34]} 46. Rb6+ {[%emt 0:00:16]} Kh5 {[%emt 0:00:28]} 47. Rb5 {[%emt 0:00:31]} Kh4 {[%emt 0:00:22]} 48. Rb6 {[%emt 0:00:19]} h5 {[%emt 0:00:11]} 49. Rb1 {[%emt 0:00:22]} Bg2 {[%emt 0:00:19]} 50. Rg1 {[%emt 0:00:47]} Kh3 {[%emt 0:00:09]} 51. Re1 {[%emt 0:01:39]} Qd6 {[%emt 0:00:35]} 52. Kc1 {[%emt 0:00:17]} Qd5 {[%emt 0:00:25]} 53. Rd1 {[%emt 0:00:27]} a4 {[%emt 0:00:19]} 54. Rd3 {[%emt 0:00:59]} a3 {[%emt 0:00:38]} 55. Kb1 {[%emt 0:00:05]} Bf1 {[%emt 0:01:05]} 56. Rd1 {[%emt 0:00:26]} Bc4 {[%emt 0:00:11]} 57. Rh1+ {[%emt 0:00:26]} Kg2 {[%emt 0:00:11]} 58. Rxh5 {[%emt 0:00:11]} Qb7+ {[%emt 0:00:15]} 0-1

[Event "VII Cape Verde Championship 2023"]
[Site "Ponta do Sol"]
[Date "2023.12.06"]
[Round "5.5"]
[White "Monteiro, Antonio David Cabral"]
[Black "Teixeira, Gil"]
[Result "0-1"]
[ECO "D10"]
[WhiteElo "1801"]
[BlackElo "1820"]
[Annotator "NA RC"]
[PlyCount "88"]
[EventDate "2023.11.30"]
[EventType "tourn"]
[EventCountry "KAP"]
[SourceTitle "playchess.com"]
[Source "ChessBase"]
[SourceQuality "1"]
[TimeControl "40/5400+30:1800+30"]

1. d4 {[%emt 0:01:54]} d5 {[%emt 0:02:02]} 2. Bf4 {[%emt 0:00:26]} Bf5 {[%emt 0:00:08]} 3. e3 {[%emt 0:00:30]} Nf6 {[%emt 0:00:16]} 4. c4 {[%emt 0:01:56]} c6 {[%emt 0:00:34]} 5. Nc3 {[%emt 0:01:11]} e6 {[%emt 0:00:12]} 6. Qb3 {[%emt 0:01:27]} Qd7 {[%emt 0:01:25] 6...Qc8 is a critical line.} 7. Nf3 {[%emt 0:05:16]} Be7 {[%emt 0:00:17]} 8. cxd5 {[%emt 0:02:46]} exd5 {[%emt 0:00:18]} 9. Ne5 {[%emt 0:02:16]} Qc8 {[%emt 0:00:06]} 10. Be2 {[%emt 0:01:50]} O-O {[%emt 0:00:09]} 11. Rc1 {[%emt 0:01:17]} Nbd7 {[%emt 0:00:08]} 12. Nf3 {[%emt 0:01:46]} Nb6 {[%emt 0:01:40]} 13. h3 {[%emt 0:01:26]} h6 {[%emt 0:00:39] [#]} 14. a4 $146 {[%emt 0:00:40]} ({Predecessor:} 14. O-O Ne4 15. a4 Be6 16. a5 Nxc3 17. bxc3 Nc4 18. Bxc4 dxc4 19. Qa2 b5 20. e4 b4 21. cxb4 Bxb4 {½-½ Hakobyan,A (2601)-Petrosyan,M (2637) Titled Tuesday intern op 22 Mar Early blitz 2022 (8)}) 14... Nbd7 {[%emt 0:06:07]} 15. O-O {[%emt 0:02:47]} b6 {[%emt 0:02:30]} 16. Rfd1 {[%emt 0:06:30]} a5 {[%emt 0:01:04]} 17. Ne5 {[%emt 0:01:55]} Qb7 {[%emt 0:00:20]} 18. Bd3 {[%emt 0:05:58]} Bxd3 {[%emt 0:01:12]} 19. Rxd3 {[%emt 0:01:42]} Rac8 {[%emt 0:00:25]} 20. Ne2 {[%emt 0:02:22]} Nxe5 {[%emt 0:01:19]} 21. Bxe5 {[%emt 0:00:54]} Ne4 {[%emt 0:00:35]} 22. Ng3 {[%emt 0:03:44]} Nxg3 {[%emt 0:01:40]} 23. Bxg3 {[%emt 0:00:09]} Bb4 {[%emt 0:00:31]} 24. Rdd1 {[%emt 0:02:45]} Rfe8 {[%emt 0:00:22]} 25. Qd3 {[%emt 0:00:48]} Re6 {[%emt 0:03:07]} 26. Rc2 {[%emt 0:01:12]} Rce8 {[%emt 0:00:22]} 27. Rdc1 {[%emt 0:00:48]} c5 {[%emt 0:05:35]} 28. b3 {[%emt 0:05:43]} Qd7 {[%emt 0:03:59]} 29. Be5 {[%emt 0:03:58]} Rg6 {[%emt 0:01:55]} 30. Qb5 {[%emt 0:03:05]} Qe6 {[%emt 0:01:12]} 31. Kf1 {[%emt 0:02:55]} h5 {[%emt 0:02:08]} 32. Bc7 {[%emt 0:04:00]} Re7 {[%emt 0:01:33]} 33. Be5 {[%emt 0:04:10]} Qf5 {[%emt 0:01:08]} 34. Qe2 {[%emt 0:04:40]} f6 {[%emt 0:00:46]} 35. Bd6 {[%emt 0:01:39]} Re6 {[%emt 0:00:40]} 36. dxc5 {[%emt 0:00:33]} d4 {[%emt 0:02:22]} 37. Rc4 {[%emt 0:09:17]} Rxe3 {[%emt 0:00:59]} 38. g4 {[%emt 0:07:01]} hxg4 {[%emt 0:00:37]} 39. hxg4 {[%emt 0:00:40]} Rxg4 {[%emt 0:00:43]} 40. Qxg4 {[%emt 0:00:15]} Qxg4 {[%emt 0:00:30]} 41. fxe3 {[%emt 0:30:12]} Qf3+ $2 {[%emt 0:30:31]} 42. Kg1 {[%emt 0:03:22]} Qxe3+ {[%emt 0:00:57]} 43. Kg2 {[%emt 0:00:52]} (43. Kh2 d3) 43... Qe2+ {[%emt 0:00:52]} 44. Kg3 {[%emt 0:00:00]} d3 $19 {[%emt 0:00:00]} 0-1

[Event "VII Cape Verde Championship 2023"]
[Site "Ponta do Sol"]
[Date "2023.12.07"]
[Round "6.1"]
[White "Alho, Diogo"]
[Black "Teixeira, Gil"]
[Result "1-0"]
[ECO "A84"]
[WhiteElo "2233"]
[BlackElo "1820"]
[Annotator "RC"]
[PlyCount "89"]
[EventDate "2023.11.30"]
[EventType "tourn"]
[EventCountry "KAP"]
[SourceTitle "playchess.com"]
[Source "ChessBase"]
[SourceQuality "1"]
[TimeControl "40/5400+30:1800+30"]

1. d4 {[%emt 0:00:51]} d5 {[%emt 0:00:10]} 2. c4 {[%emt 0:00:07]} c6 {[%emt 0:00:12]} 3. Nf3 {[%emt 0:00:15]} f5 {[%emt 0:00:17]} 4. cxd5 {[%emt 0:01:20]} cxd5 {[%emt 0:00:10]} 5. Nc3 {[%emt 0:00:10]} e6 {[%emt 0:00:08]} 6. Bf4 {[%emt 0:00:45]} Nf6 {[%emt 0:00:22]} 7. e3 {[%emt 0:00:13]} Bd6 {[%emt 0:00:20]} 8. Ne5 {[%emt 0:01:28]} O-O {[%emt 0:00:16]} 9. Bd3 {[%emt 0:00:41]} Nc6 {[%emt 0:00:13]} 10. Nxc6 {[%emt 0:10:04]} bxc6 {[%emt 0:00:22]} 11. Qc2 {[%emt 0:06:48]} Bxf4 {[%emt 0:00:17]} 12. exf4 {[%emt 0:00:05]} Qb6 {[%emt 0:01:44]} 13. Ne2 {[%emt 0:00:30]} Ba6 {[%emt 0:01:33]} 14. Bxa6 {[%emt 0:00:17]} Qxa6 {[%emt 0:00:18]} 15. O-O {[%emt 0:00:16]} Ne4 {[%emt 0:00:15]} 16. Rfe1 {[%emt 0:02:54]} Rf6 {[%emt 0:01:31]} 17. Nc1 {[%emt 0:05:09]} Qb6 {[%emt 0:01:24]} 18. Nb3 {[%emt 0:00:48]} Rc8 {[%emt 0:03:33]} 19. f3 {[%emt 0:01:33]} Nd6 {[%emt 0:01:47]} 20. Nc5 {[%emt 0:01:49]} Re8 {[%emt 0:00:35]} 21. Rad1 {[%emt 0:02:17]} Qc7 {[%emt 0:00:47]} 22. Rc1 {[%emt 0:00:31]} Nc4 {[%emt 0:00:47]} 23. b3 {[%emt 0:02:14]} Na5 {[%emt 0:01:09]} 24. Nd3 {[%emt 0:00:18]} Qb6 {[%emt 0:01:19]} 25. Qc5 {[%emt 0:01:19]} Rc8 {[%emt 0:00:54]} 26. Ne5 {[%emt 0:00:45]} Qa6 {[%emt 0:02:08]} 27. Qe7 {[%emt 0:07:27]} Qb6 {[%emt 0:03:04]} 28. Red1 {[%emt 0:16:28]} Qa6 {[%emt 0:01:29]} 29. Rc2 {[%emt 0:04:12]} h6 {[%emt 0:03:51]} 30. Nd7 {[%emt 0:01:10]} Rg6 {[%emt 0:02:01]} 31. Nc5 {[%emt 0:01:37]} Qb6 {[%emt 0:00:37]} 32. Re2 {[%emt 0:03:07]} Qc7 {[%emt 0:01:00]} 33. Rxe6 {[%emt 0:00:26]} Rxe6 {[%emt 0:01:30]} 34. Qxe6+ {[%emt 0:00:39]} Kh8 {[%emt 0:00:20]} 35. Nd7 {[%emt 0:03:56]} Nb7 {[%emt 0:02:43]} 36. Ne5 {[%emt 0:02:00]} Nd6 {[%emt 0:00:56]} 37. Qxd6 {[%emt 0:00:12]} Qa5 {[%emt 0:01:10]} 38. Qe6 {[%emt 0:01:29]} Rb8 {[%emt 0:00:50]} 39. Qxf5 {[%emt 0:01:18]} Qxa2 {[%emt 0:00:23]} 40. Qb1 {[%emt 0:02:46]} Qa3 {[%emt 0:00:30]} 41. Re1 {[%emt 0:32:09]} Rxb3 {[%emt 0:31:39]} 42. Nf7+ {[%emt 0:00:19]} Kg8 {[%emt 0:00:45]} 43. Nxh6+ {[%emt 0:00:08]} gxh6 {[%emt 0:01:05]} 44. Qg6+ {[%emt 0:00:06]} Kf8 {[%emt 1:06:06]} 45. Re8# {[%emt 0:20:04]} 1-0

[Event "VII Cape Verde Championship 2023"]
[Site "Ponta do Sol"]
[Date "2023.12.08"]
[Round "6.2"]
[White "Vaz, Jose Carlos"]
[Black "Monteiro, Antonio David Cabral"]
[Result "1-0"]
[ECO "B12"]
[WhiteElo "1833"]
[BlackElo "1801"]
[Annotator "NA RC"]
[PlyCount "87"]
[EventDate "2023.11.30"]
[EventType "tourn"]
[EventCountry "KAP"]
[SourceTitle "playchess.com"]
[Source "ChessBase"]
[SourceQuality "1"]
[TimeControl "40/5400+30:1800+30"]

1. e4 {[%emt 0:01:04]} c6 {[%emt 0:00:39]} 2. d4 {[%emt 0:00:58]} d5 {[%emt 0:00:22]} 3. e5 {[%emt 0:01:47]} c5 {[%emt 0:00:23]} 4. c3 {[%emt 0:01:39]} Nc6 {[%emt 0:01:00]} 5. Nf3 {[%emt 0:00:18]} Bg4 {[%emt 0:00:19]} 6. Bb5 {[%emt 0:01:47]} e6 {[%emt 0:00:48]} 7. O-O {[%emt 0:00:31] 7.0-0 scores better than 7.h3.} Nge7 {[%emt 0:00:54]} 8. h3 {[%emt 0:01:23] [#]} Bh5 $146 {[%emt 0:01:33]} ({Predecessor:} 8... Bxf3 9. Qxf3 cxd4 10. cxd4 Qb6 11. Qd3 a6 12. Bxc6+ Nxc6 13. Rd1 Be7 14. Nc3 O-O {0-1 Soot,M (2091)-Khenkin,I (2586) Keres Memorial rap 23rd rapid 2014 (1)}) 9. Re1 {[%emt 0:02:03]} a6 {[%emt 0:01:31]} 10. Ba4 {[%emt 0:00:51]} Bxf3 {[%emt 0:05:39]} 11. Bxc6+ {[%emt 0:00:40]} Nxc6 {[%emt 0:01:17]} 12. gxf3 {[%emt 0:00:14]} cxd4 {[%emt 0:02:13]} 13. cxd4 {[%emt 0:00:19]} Qh4 {[%emt 0:02:29]} 14. f4 {[%emt 0:01:51]} Qxh3 {[%emt 0:02:16]} 15. Re3 {[%emt 0:00:16]} Qf5 {[%emt 0:02:22]} 16. Rg3 {[%emt 0:00:21]} h5 {[%emt 0:01:49]} 17. Nc3 {[%emt 0:00:20]} h4 {[%emt 0:01:00]} 18. Rg5 {[%emt 0:00:25]} Qh7 {[%emt 0:01:47]} 19. Be3 {[%emt 0:00:39]} Be7 {[%emt 0:03:51]} 20. Rg4 {[%emt 0:00:28]} h3 {[%emt 0:01:24]} 21. Kh2 {[%emt 0:00:09]} Kf8 {[%emt 0:05:21]} 22. Qe2 {[%emt 0:00:39]} b5 {[%emt 0:03:03]} 23. Rc1 {[%emt 0:00:59]} Na5 {[%emt 0:01:43]} 24. b3 {[%emt 0:00:11]} Rc8 {[%emt 0:00:51]} 25. Bd2 {[%emt 0:02:11]} (25. Nxb5 $11 Rxc1 26. Bxc1) 25... Rc6 {[%emt 0:08:48]} 26. Rcg1 {[%emt 0:01:00]} Qc2 {[%emt 0:04:45]} 27. Qe3 {[%emt 0:03:14]} Bb4 {[%emt 0:02:18]} 28. Rc1 {[%emt 0:06:07]} Qh7 {[%emt 0:03:10]} 29. Qg3 {[%emt 0:02:42]} g6 {[%emt 0:01:58]} 30. Qd3 {[%emt 0:12:12]} Bxc3 {[%emt 0:01:37]} 31. Bxc3 {[%emt 0:02:42]} (31. Rxc3 $16 Qh5 32. Rg5) 31... Kg7 {[%emt 0:08:52]} 32. Rcg1 {[%emt 0:04:36]} Nb7 {[%emt 0:04:57]} 33. f5 {[%emt 0:04:03]} exf5 {[%emt 0:00:29]} 34. Qxf5 $18 {[%emt 0:01:25]} Nd8 {[%emt 0:10:04]} 35. Ba5 {[%emt 0:01:17]} Rf8 {[%emt 0:06:36]} 36. Qd7 {[%emt 0:00:31]} Rc2 {[%emt 0:02:40]} 37. Bxd8 {[%emt 0:01:48]} Rxf2+ {[%emt 0:02:35]} 38. Kg3 {[%emt 0:02:36]} h2 {[%emt 0:04:19]} 39. Rh1 {[%emt 0:43:44]} Rc2 {[%emt 0:00:52]} 40. Bf6+ {[%emt 0:00:00]} Kg8 {[%emt 0:00:51]} 41. Rh4 {[%emt 0:00:00]} Rfc8 {[%emt 0:30:49]} 42. Rxh7 {[%emt 0:00:00]} R8c3+ {[%emt 0:00:00]} 43. Kh4 {[%emt 0:00:00]} Kxh7 {[%emt 0:01:46]} 44. Qxf7+ {[%emt 0:32:30]} 1-0

[Event "VII Cape Verde Championship 2023"]
[Site "Ponta do Sol"]
[Date "2023.12.08"]
[Round "6.3"]
[White "Rodriguez Guevara, Celia M."]
[Black "Silva, Bryan Jorge"]
[Result "1-0"]
[ECO "D02"]
[WhiteElo "1746"]
[BlackElo "1586"]
[Annotator "NA RC"]
[PlyCount "117"]
[EventDate "2023.11.30"]
[EventType "tourn"]
[EventCountry "KAP"]
[SourceTitle "playchess.com"]
[Source "ChessBase"]
[SourceQuality "1"]
[TimeControl "40/5400+30:1800+30"]

1. d4 {[%emt 0:00:18]} d5 {[%emt 0:00:11]} 2. Bf4 {[%emt 0:00:21]} Nf6 {[%emt 0:00:22]} 3. e3 {[%emt 0:00:24]} c5 {[%emt 0:00:11]} 4. c3 {[%emt 0:01:39]} Nc6 {[%emt 0:01:23]} 5. Nf3 {[%emt 0:00:46]} Qb6 {[%emt 0:00:21]} 6. Qb3 {[%emt 0:04:24]} c4 {[%emt 0:00:41]} 7. Qxb6 {[%emt 0:06:55]} axb6 {[%emt 0:00:20]} 8. Na3 {[%emt 0:04:08]} e5 {[%emt 0:13:05]} 9. dxe5 {[%emt 0:04:51]} Bxa3 {[%emt 0:00:17]} 10. bxa3 {[%emt 0:08:11]} Ne4 {[%emt 0:00:16]} 11. Nd2 {[%emt 0:08:11]} Bf5 {[%emt 0:05:56]} 12. Nxe4 {[%emt 0:06:49]} Bxe4 {[%emt 0:00:23]} 13. f3 {[%emt 0:00:12]} Bg6 {[%emt 0:01:11]} 14. e4 {[%emt 0:07:25]} dxe4 {[%emt 0:00:52]} 15. Bxc4 {[%emt 0:00:15]} exf3 {[%emt 0:00:42]} 16. gxf3 {[%emt 0:00:09]} Rxa3 {[%emt 0:00:33]} 17. Bb3 {[%emt 0:06:01]} Na5 {[%emt 0:01:05]} 18. O-O {[%emt 0:01:37]} Ke7 {[%emt 0:00:28]} 19. Bc1 {[%emt 0:00:31]} Rxb3 {[%emt 0:02:25]} 20. axb3 {[%emt 0:00:11]} Nxb3 {[%emt 0:00:11]} 21. Bg5+ {[%emt 0:05:59]} f6 {[%emt 0:02:05]} 22. exf6+ {[%emt 0:00:12]} gxf6 {[%emt 0:00:09]} 23. Rae1+ {[%emt 0:00:34]} Kf7 {[%emt 0:00:34]} 24. Bh6 {[%emt 0:01:03]} b5 {[%emt 0:03:37]} 25. Rd1 {[%emt 0:03:44]} Bf5 {[%emt 0:00:35]} 26. Rd5 {[%emt 0:01:33]} Be6 {[%emt 0:01:52]} 27. Rd6 {[%emt 0:03:42]} Bc4 {[%emt 0:03:23]} 28. Re1 {[%emt 0:04:02]} Rg8+ {[%emt 0:01:26]} 29. Kh1 {[%emt 0:02:28]} Nc5 {[%emt 0:03:05]} 30. Rg1 {[%emt 0:01:47]} Rxg1+ {[%emt 0:02:08]} 31. Kxg1 {[%emt 0:00:03]} Kg6 {[%emt 0:01:24]} 32. Be3 {[%emt 0:00:37]} Nd3 {[%emt 0:03:45]} 33. Bd4 {[%emt 0:01:06]} h5 {[%emt 0:09:47]} 34. h4 {[%emt 0:02:38]} Kf7 {[%emt 0:03:13]} 35. Rxf6+ {[%emt 0:00:51]} Ke8 {[%emt 0:00:54]} 36. Rf5 {[%emt 0:00:20]} Bf7 {[%emt 0:00:39]} 37. Rxb5 {[%emt 0:00:16]} Nf4 {[%emt 0:00:53]} 38. Rxb7 {[%emt 0:02:03]} Nd5 {[%emt 0:01:07]} 39. Ra7 {[%emt 0:01:42]} Nf4 {[%emt 0:00:48]} 40. Be5 {[%emt 0:03:00]} Nd3 {[%emt 0:00:32]} 41. f4 {[%emt 0:30:38]} Be6 {[%emt 0:31:55]} 42. Rh7 {[%emt 0:01:45]} Bg4 {[%emt 0:00:13]} 43. c4 {[%emt 0:02:37]} Nb4 {[%emt 0:00:31]} 44. c5 {[%emt 0:00:26]} Nc6 {[%emt 0:00:08]} 45. Rc7 {[%emt 0:01:32]} Bd7 {[%emt 0:00:39]} 46. Bf6 {[%emt 0:00:00]} Nb4 {[%emt 0:00:00]} 47. Bg5 {[%emt 0:00:00]} Na6 {[%emt 0:00:00]} 48. Ra7 {[%emt 0:00:00]} Nxc5 {[%emt 0:00:00]} 49. f5 {[%emt 0:00:00]} Nd3 {[%emt 0:00:00]} 50. f6 {[%emt 0:00:00]} Ne5 {[%emt 0:00:00]} 51. Kf2 {[%emt 0:00:00]} Kf7 {[%emt 0:00:00]} 52. Kg3 {[%emt 0:00:00]} Ke6 {[%emt 0:00:00]} 53. Ra8 {[%emt 0:00:00]} Kf7 {[%emt 0:00:00]} 54. Rh8 {[%emt 0:00:00]} Bg4 {[%emt 0:00:00]} 55. Rh7+ {[%emt 0:00:00]} Kf8 {[%emt 0:00:00]} 56. Bh6+ {[%emt 0:00:00]} Kg8 {[%emt 0:00:00]} 57. Rg7+ {[%emt 0:00:00]} Kh8 {[%emt 0:00:00]} 58. f7 {[%emt 0:00:00]} Nd7 {[%emt 0:00:00]} 59. Rg5 {[%emt 0:00:00]} 1-0

[Event "VII Cape Verde Championship 2023"]
[Site "Ponta do Sol"]
[Date "2023.12.07"]
[Round "6.5"]
[White "Barros, Luis"]
[Black "Mirulla, David"]
[Result "1/2-1/2"]
[ECO "C84"]
[WhiteElo "1656"]
[BlackElo "1929"]
[Annotator "RC"]
[PlyCount "84"]
[EventDate "2023.11.30"]
[EventType "tourn"]
[EventCountry "KAP"]
[SourceTitle "playchess.com"]
[Source "ChessBase"]
[SourceQuality "1"]
[TimeControl "40/5400+30:1800+30"]

1. e4 {[%emt 0:00:19]} e5 {[%emt 0:00:10]} 2. Nf3 {[%emt 0:00:19]} Nc6 {[%emt 0:00:11]} 3. Bb5 {[%emt 0:00:12]} a6 {[%emt 0:00:09]} 4. Ba4 {[%emt 0:00:38]} Nf6 {[%emt 0:00:07]} 5. O-O {[%emt 1:31:32]} Be7 {[%emt 1:32:23]} 6. d3 {[%emt 0:00:00]} b5 {[%emt 0:00:00]} 7. Bb3 {[%emt 0:00:00]} O-O {[%emt 0:00:00]} 8. Nc3 {[%emt 0:00:00]} d6 {[%emt 0:00:00]} 9. a4 {[%emt 0:00:00]} b4 {[%emt 0:00:00]} 10. Ne2 {[%emt 0:00:00]} Na5 {[%emt 0:00:00]} 11. Ba2 {[%emt 0:00:00]} Rb8 {[%emt 0:00:00]} 12. Ng3 {[%emt 0:00:00]} c5 {[%emt 0:00:00]} 13. Bg5 {[%emt 0:00:00]} Be6 {[%emt 0:00:00]} 14. Nh4 {[%emt 0:00:00]} Bxa2 {[%emt 0:00:00]} 15. Rxa2 {[%emt 0:00:00]} b3 {[%emt 0:00:00]} 16. cxb3 {[%emt 0:00:00]} Nxb3 {[%emt 0:00:00]} 17. Nhf5 {[%emt 0:00:00]} g6 {[%emt 0:00:00]} 18. Nxe7+ {[%emt 0:00:00]} Qxe7 {[%emt 0:00:00]} 19. f4 {[%emt 0:00:00]} h6 {[%emt 0:00:00]} 20. Bh4 {[%emt 0:00:00]} exf4 {[%emt 0:00:00]} 21. Rxf4 {[%emt 0:00:00]} g5 {[%emt 0:00:00]} 22. Nf5 {[%emt 0:00:00]} Qe5 {[%emt 0:00:00]} 23. Nxh6+ {[%emt 0:00:00]} Kh7 {[%emt 0:00:00]} 24. Rf5 {[%emt 0:00:00]} Kxh6 {[%emt 0:00:00]} 25. Bxg5+ {[%emt 0:00:00]} Kg6 {[%emt 0:00:00]} 26. Rxe5 {[%emt 0:00:00]} dxe5 {[%emt 0:00:00]} 27. h4 {[%emt 0:00:00]} a5 {[%emt 0:00:00]} 28. Ra3 {[%emt 0:00:00]} Nd4 {[%emt 0:00:00]} 29. Qf1 {[%emt 0:00:00]} Ng4 {[%emt 0:00:00]} 30. Be7 {[%emt 0:00:00]} Rxb2 {[%emt 0:00:00]} 31. Bxf8 {[%emt 0:00:00]} Ne2+ {[%emt 0:00:00]} 32. Qxe2 {[%emt 0:00:00]} Rxe2 {[%emt 0:00:00]} 33. g3 {[%emt 0:00:00]} Rc2 {[%emt 0:00:00]} 34. Bd6 {[%emt 0:00:00]} f6 {[%emt 0:00:00]} 35. Bc7 {[%emt 0:00:00]} Nh2 {[%emt 0:00:00]} 36. Bxa5 {[%emt 0:00:00]} Kh5 {[%emt 0:15:30]} 37. Ra1 {[%emt 0:00:00]} Kg4 {[%emt 0:00:00]} 38. Be1 {[%emt 0:00:00]} Kh3 {[%emt 0:00:00]} 39. Bf2 {[%emt 0:00:00]} Nf3+ {[%emt 0:00:00]} 40. Kf1 {[%emt 0:00:00]} Nh2+ {[%emt 0:00:00]} 41. Kg1 {[%emt 0:00:00]} Nf3+ {[%emt 0:19:10]} 42. Kf1 {[%emt 0:00:00]} Nh2+ {[%emt 0:00:00]} 1/2-1/2

[Event "VII Cape Verde Championship 2023"]
[Site "Ponta do Sol"]
[Date "2023.12.09"]
[Round "7.1"]
[White "Mirulla, David"]
[Black "Alho, Diogo"]
[Result "1-0"]
[ECO "B01"]
[WhiteElo "1929"]
[BlackElo "2233"]
[Annotator "RC"]
[PlyCount "65"]
[EventDate "2023.11.30"]
[EventType "tourn"]
[EventCountry "KAP"]
[SourceTitle "playchess.com"]
[Source "ChessBase"]
[SourceQuality "1"]
[TimeControl "40/5400+30:1800+30"]

1. e4 {[%emt 0:00:21]} d5 {[%emt 0:03:49]} 2. exd5 {[%emt 0:05:25]} Qxd5 {[%emt 0:00:14]} 3. Nc3 {[%emt 0:00:43]} Qd6 {[%emt 0:00:13]} 4. d4 {[%emt 0:03:29]} Nf6 {[%emt 0:00:49]} 5. Nf3 {[%emt 0:08:17]} a6 {[%emt 0:00:43]} 6. g3 {[%emt 0:02:21]} b5 {[%emt 0:00:20]} 7. Bg2 {[%emt 0:03:23]} Bb7 {[%emt 0:00:06]} 8. O-O {[%emt 0:03:08]} e6 {[%emt 0:05:27]} 9. Bf4 {[%emt 0:05:23]} Qb6 {[%emt 0:00:22]} 10. a4 {[%emt 0:05:41]} b4 {[%emt 0:03:16]} 11. a5 {[%emt 0:00:44]} Qa7 {[%emt 0:02:02]} 12. Bxc7 {[%emt 0:08:31]} Bxf3 {[%emt 0:20:22]} 13. Qxf3 {[%emt 0:00:48]} Qxc7 {[%emt 0:00:19]} 14. Nb5 {[%emt 0:00:31]} Qd7 {[%emt 0:00:28]} 15. Qxa8 {[%emt 0:00:19]} Qxb5 {[%emt 0:00:22]} 16. c4 {[%emt 0:02:00]} bxc3 {[%emt 0:06:13]} 17. bxc3 {[%emt 0:00:11]} Nfd7 {[%emt 0:02:15]} 18. Rfb1 {[%emt 0:01:27]} Qc4 {[%emt 0:01:36]} 19. Rxb8+ {[%emt 0:01:39]} Nxb8 {[%emt 0:00:07]} 20. Qxb8+ {[%emt 0:00:10]} Ke7 {[%emt 0:01:15]} 21. Rb1 {[%emt 0:01:28]} Kf6 {[%emt 0:03:09]} 22. Qe5+ {[%emt 0:06:24]} Kg6 {[%emt 0:00:13]} 23. Be4+ {[%emt 0:08:44]} f5 {[%emt 0:03:35]} 24. Bc2 {[%emt 0:07:13]} Qa2 {[%emt 0:09:41]} 25. Bd3 {[%emt 0:02:56]} Be7 {[%emt 0:19:59]} 26. Rb6 {[%emt 0:02:47]} Bf6 {[%emt 0:06:45]} 27. Rxe6 {[%emt 0:02:00]} Kf7 {[%emt 0:00:52]} 28. Qc7+ {[%emt 0:04:13]} Kg6 {[%emt 0:00:32]} 29. Rxa6 {[%emt 0:00:48]} Re8 {[%emt 0:02:40]} 30. Bxf5+ {[%emt 0:04:18]} Kxf5 {[%emt 0:00:42]} 31. Qd7+ {[%emt 0:00:12]} Kg5 {[%emt 0:00:21]} 32. h4+ {[%emt 0:01:00]} Kh6 {[%emt 0:00:27]} 33. Qxe8 {[%emt 0:00:45]} 1-0

[Event "VII Cape Verde Championship 2023"]
[Site "Ponta do Sol"]
[Date "2023.12.08"]
[Round "7.2"]
[White "Ortega Amarelle, Mariano"]
[Black "Barros, Luis"]
[Result "1-0"]
[ECO "B06"]
[WhiteElo "2478"]
[BlackElo "1656"]
[Annotator "RC"]
[PlyCount "43"]
[EventDate "2023.11.30"]
[EventType "tourn"]
[EventCountry "KAP"]
[SourceTitle "playchess.com"]
[Source "ChessBase"]
[SourceQuality "1"]
[TimeControl "40/5400+30:1800+30"]

1. e4 {[%emt 0:00:34]} g6 {[%emt 0:01:40]} 2. d4 {[%emt 0:00:30]} Bg7 {[%emt 0:00:34]} 3. Nc3 {[%emt 0:00:53]} e6 {[%emt 0:01:08]} 4. h4 {[%emt 0:00:23]} c6 {[%emt 0:02:01]} 5. h5 {[%emt 0:00:42]} g5 {[%emt 0:00:43]} 6. h6 {[%emt 0:02:42]} Bf6 {[%emt 0:01:13]} 7. e5 {[%emt 0:00:26]} Be7 {[%emt 0:00:36]} 8. Ne4 {[%emt 0:00:33]} d5 {[%emt 0:01:08]} 9. exd6 {[%emt 0:00:11]} Bxd6 {[%emt 0:00:40]} 10. Bxg5 {[%emt 0:00:12]} Qa5+ {[%emt 0:01:12]} 11. c3 {[%emt 0:00:48]} Be7 {[%emt 0:00:28]} 12. Nf3 {[%emt 0:01:35]} Nd7 {[%emt 0:01:45]} 13. Bxe7 {[%emt 0:03:01]} Nxe7 {[%emt 0:00:40]} 14. Nd6+ {[%emt 0:00:24]} Kf8 {[%emt 0:01:11]} 15. Bc4 {[%emt 0:01:25]} Qc7 {[%emt 0:02:12]} 16. Nxf7 {[%emt 0:02:31]} Kxf7 {[%emt 0:03:01]} 17. Ng5+ {[%emt 0:00:16]} Ke8 {[%emt 0:01:09]} 18. Qh5+ {[%emt 0:02:25]} Ng6 {[%emt 0:00:40]} 19. Nxh7 {[%emt 0:00:30]} Nde5 {[%emt 0:01:56]} 20. dxe5 {[%emt 0:04:00]} Qxe5+ {[%emt 0:01:15]} 21. Be2 {[%emt 0:00:10]} Qg7 {[%emt 0:00:55]} 22. hxg7 {[%emt 0:00:17]} 1-0